bitfinex/quotes_ETHUSD_20240711
["timestamp","ask_amount","ask_price","bid_price","bid_amount"]
[1720713786998,2.4152,3119.3,3117.7,3.20747]
[1720713786999,1.11044397,3119.1,3117.7,3.20747]
[1720713787203,2.4152,3119.3,3117.7,3.20742]
[1720713787434,1.11045891,3119.2,3117.7,3.20742]
[1720713787643,1.11045891,3119.1,3117.7,3.20742]
[1720713787847,2.4152,3119.3,3117.9,3.2072]
[1720713788030,2.4152,3119.3,3118.0,3.27123074]
[1720713788606,2.4152,3119.3,3118.0,3.2071]
[1720713789122,2.4152,3119.3,3118.1,0.06413089]
[1720713789456,2.4152,3119.3,3118.0,3.2071]
[1720713789608,2.67984879,3119.3,3118.1,4.0761]
[1720713789809,2.4152,3119.3,3118.1,4.0761]
[1720713790827,2.4152,3119.3,3118.1,0.86913]
[1720713791151,2.4152,3119.3,3117.9,2.277]
[1720713791152,2.4152,3119.3,3118.0,3.20711]
[1720713791375,2.4152,3119.3,3118.1,3.20707]
[1720713792050,2.4152,3119.3,3117.8,3.528072]
[1720713792222,2.4152,3119.3,3117.8,0.320742]
[1720713792419,2.4152,3119.3,3117.6,3.20754]
[1720713792420,1.11042819,3119.2,3117.6,3.20753]
[1720713792637,2.4152,3119.3,3117.8,3.20736]
[1720713792848,1.11043099,3119.2,3117.8,3.20736]
[1720713793056,2.4152,3119.3,3117.8,3.20736]
[1720713793277,1.11044117,3119.2,3117.8,3.20736]
[1720713793434,0.35256412,3119.1,3117.9,0.320736]
[1720713794532,0.35256412,3119.1,3117.4,3.20773]
[1720713794533,3.412222,3119.0,3117.4,3.20773]
[1720713794755,1.1105583,3118.9,3117.4,3.20773]
[1720713795080,1.1105583,3118.8,3117.4,3.20773]
[1720713795563,2.3017,3119.0,3117.3,3.20783]
[1720713795770,3.39301701,3118.9,3117.3,3.20783]
[1720713796085,0.84991871,3118.8,3117.4,0.641579]
[1720713796374,2.3155,3118.8,3117.0,3.20811]
[1720713796535,2.9781,3118.7,3117.0,3.20811]
[1720713796854,2.9781,3118.7,3117.1,3.20809]
[1720713798267,2.4281,3118.7,3117.4,3.20772]
[1720713798650,2.4281,3118.7,3117.5,2.277]
[1720713798872,2.4281,3118.7,3117.7,3.20747]
[1720713799256,0.65074451,3119.0,3117.6,0.2277]
[1720713799500,0.65074451,3119.0,3117.6,3.43528]
[1720713799700,2.3966,3119.1,3117.6,3.43528]
[1720713800006,2.3966,3119.1,3117.7,3.20747]
[1720713800304,2.3966,3119.1,3117.0,3.20817]
[1720713800305,2.3281,3118.8,3117.0,3.20817]
[1720713800599,0.55,3118.7,3117.0,3.20817]
[1720713800795,2.3281,3118.6,3116.9,2.277]
[1720713801020,2.3281,3118.6,3116.9,5.48525]
[1720713801513,1.20074451,3118.7,3116.7,3.20844]
[1720713801514,2.838,3118.5,3116.7,3.20844]
[1720713801680,2.288,3118.3,3116.8,0.320844]
[1720713803098,2.288,3118.3,3116.4,3.20876]
[1720713803099,2.4073,3118.2,3116.4,3.20876]
[1720713803277,2.9573,3118.2,3116.4,3.20876]
[1720713803815,2.9573,3118.2,3116.5,3.20872]
[1720713803977,2.9573,3118.2,3116.6,3.20862]
[1720713804296,2.9573,3118.2,3116.4,3.20873]
[1720713804507,2.9573,3118.2,3116.3,5.48588]
[1720713804508,2.4073,3118.0,3116.5,4.078161]
[1720713804662,2.4073,3118.0,3116.5,0.869461]
[1720713805493,2.4073,3118.0,3116.3,5.48587]
[1720713805858,2.4073,3118.0,3116.4,3.20882]
[1720713806366,2.3167,3117.8,3116.1,3.20908]
[1720713806570,2.3167,3117.8,3116.4,3.20881]
[1720713806883,2.3167,3117.8,3116.5,3.20872]
[1720713807092,2.54837,3117.8,3116.6,0.320872]
[1720713807707,2.54837,3117.8,3115.9,2.277]
[1720713807708,0.55,3117.7,3115.9,2.277]
[1720713807922,2.4235,3117.6,3115.9,2.277]
[1720713808371,2.4235,3117.6,3115.9,5.48632]
[1720713808773,3.377,3117.6,3115.7,3.20947]
[1720713809001,2.2747,3117.4,3115.8,0.320947]
[1720713809523,2.8247,3117.3,3115.8,0.320947]
[1720713809820,2.8247,3117.3,3115.9,3.20927]
[1720713809821,2.2747,3117.3,3115.9,3.20927]
[1720713809978,2.2747,3117.3,3116.0,3.20917]
[1720713812088,2.2747,3117.3,3115.9,5.48627]
[1720713812089,2.2747,3117.3,3115.9,2.277]
[1720713812289,0.22747,3117.2,3116.0,0.5807307]
[1720713812522,0.22747,3117.2,3115.9,2.277]
[1720713812828,2.4902,3117.1,3115.8,0.320947]
[1720713813047,2.4902,3117.1,3115.6,3.20965]
[1720713813411,2.4902,3117.0,3115.1,3.21007]
[1720713813726,1.11129303,3116.9,3115.2,3.21005]
[1720713813932,2.4817,3116.7,3115.3,0.642012]
[1720713814235,2.4817,3116.7,3114.8,3.21043]
[1720713814236,2.4817,3116.5,3114.8,3.21043]
[1720713814434,2.4817,3116.5,3114.9,3.21037]
[1720713814635,2.4817,3116.5,3114.4,2.277]
[1720713814636,2.4817,3116.5,3115.4,3.20983]
[1720713814846,2.4817,3116.5,3115.5,0.320983]
[1720713815647,2.4817,3116.5,3115.2,2.277]
[1720713815813,2.4817,3116.5,3115.6,3.20964]
[1720713816133,2.4817,3116.5,3115.3,3.20991]
[1720713816333,2.4817,3116.5,3115.2,2.277]
[1720713816533,2.4817,3116.5,3115.6,3.20962]
[1720713816840,2.4817,3116.5,3115.6,0.320962]
[1720713817045,2.4817,3116.5,3115.3,3.20987]
[1720713817195,2.4817,3116.5,3115.6,3.20963]
[1720713818216,2.4817,3116.5,3115.5,3.20968]
[1720713818421,2.4817,3116.5,3115.6,3.20958]
[1720713818628,2.4817,3116.5,3115.5,3.20968]
[1720713818808,2.4817,3116.5,3115.6,0.320968]
[1720713819012,2.4817,3116.5,3115.1,3.2101]
[1720713819217,2.4817,3116.5,3115.2,3.21006]
[1720713819404,2.4817,3116.5,3115.0,3.21018]
[1720713819610,2.4817,3116.5,3114.9,3.21027]
[1720713820035,2.4817,3116.5,3115.0,3.21026]
[1720713820305,0.24817,3116.4,3115.1,0.321026]
[1720713821202,2.4817,3116.5,3115.4,3.20985]
[1720713821627,2.4817,3116.5,3115.2,3.20997]
[1720713822034,2.4817,3116.5,3115.5,3.20966]
[1720713822540,0.000824,3116.8,3116.0,3.20921]
[1720713822748,0.000824,3116.8,3115.8,3.20935]
[1720713822966,0.000824,3116.8,3115.9,3.530215]
[1720713823259,0.000824,3116.8,3115.9,0.320935]
[1720713823415,0.000824,3116.8,3115.6,3.2096]
[1720713823967,0.000824,3116.8,3115.6,3.20957]
[1720713824261,0.000824,3116.8,3115.4,3.2098]
[1720713824429,0.000824,3116.8,3115.5,3.20968]
[1720713824624,0.000824,3116.8,3115.2,3.21005]
[1720713824625,2.311,3116.7,3115.2,3.21005]
[1720713824851,1.34253306,3116.6,3115.3,0.3531076]
[1720713825021,0.2311824,3116.6,3115.3,0.3531076]
[1720713825232,0.2311824,3116.6,3115.4,3.20985]
[1720713825436,2.311,3116.7,3115.4,3.20985]
[1720713825642,1.11134363,3116.6,3115.4,3.20985]
[1720713825954,2.311,3116.7,3115.6,3.20964]
[1720713826679,1.11131403,3116.6,3115.4,3.20976]
[1720713826878,2.311,3116.7,3115.5,3.2097]
[1720713827174,2.311,3116.7,3115.3,0.3531076]
[1720713827175,1.34252274,3116.6,3115.3,0.3531076]
[1720713827467,1.11134034,3116.5,3115.2,3.21006]
[1720713827672,1.11141197,3116.4,3115.2,3.21006]
[1720713827877,2.311,3116.7,3115.5,3.20975]
[1720713828083,1.11129331,3116.6,3115.3,3.20987]
[1720713828380,1.11133419,3116.5,3115.4,3.20983]
[1720713828535,2.311,3116.7,3115.5,0.64197]
[1720713828865,1.11127111,3116.6,3115.5,0.64197]
[1720713829033,2.311,3116.7,3115.5,0.64197]
[1720713829234,1.11129252,3116.6,3115.5,0.64197]
[1720713829546,0.000824,3116.8,3115.0,3.21026]
[1720713829547,2.475,3116.4,3115.0,3.21026]
[1720713829855,1.11129252,3116.3,3115.1,3.21014]
[1720713830573,1.11129252,3116.3,3115.2,3.21005]
[1720713830934,1.11140587,3116.2,3115.2,6.42005]
[1720713831138,2.475,3116.4,3115.4,3.20978]
[1720713831340,1.11133167,3116.3,3115.5,0.320978]
[1720713831538,2.475,3116.4,3115.5,0.320978]
[1720713831747,1.11135682,3116.3,3115.5,0.320978]
[1720713831975,1.11136776,3116.2,3115.5,0.320978]
[1720713832281,2.475,3116.4,3115.5,0.320978]
[1720713832582,1.11136763,3116.3,3115.5,0.320978]
[1720713832872,2.475,3116.4,3115.6,0.3530828]
[1720713833040,1.11133613,3116.3,3115.6,0.3530828]
[1720713833239,2.284424,3116.8,3115.6,3.5626428]
[1720713833436,1.11125952,3116.7,3115.7,3.20954]
[1720713833632,1.11125952,3116.6,3115.7,3.20954]
[1720713833879,2.284424,3116.8,3115.8,0.67721828]
[1720713834380,1.11121709,3116.7,3115.8,0.67721828]
[1720713834581,1.11121709,3116.6,3115.8,0.67721828]
[1720713834873,2.284424,3116.8,3115.8,0.67721828]
[1720713835176,1.11122789,3116.7,3115.8,0.67721828]
[1720713835342,1.11122789,3116.6,3115.9,0.38867583]
[1720713835546,1.11122789,3116.7,3115.9,0.38867583]
[1720713835877,1.11122789,3116.6,3115.9,0.38867583]
[1720713836076,1.11122789,3116.7,3115.8,0.67721828]
[1720713837378,1.11122863,3116.6,3115.8,0.67721828]
[1720713837552,1.11122863,3116.5,3115.8,0.67721828]
[1720713837781,1.11122863,3116.7,3115.8,0.67721828]
[1720713837937,2.284424,3116.8,3115.8,0.67721828]
[1720713837938,1.11117124,3116.6,3115.8,0.67721828]
[1720713838138,1.11117124,3116.5,3115.4,6.41958]
[1720713838341,1.11117124,3116.6,3115.4,3.20978]
[1720713838536,1.11117124,3116.5,3115.4,3.20978]
[1720713838741,1.11117124,3116.6,3115.5,3.20973]
[1720713838964,1.11117124,3116.6,3115.6,0.641951]
[1720713839180,1.76135894,3116.6,3115.3,3.20993]
[1720713839387,3.0074877,3116.3,3114.9,3.2103]
[1720713839541,1.76135894,3116.2,3114.9,3.21029]
[1720713839744,1.11117124,3116.1,3114.9,3.21029]
[1720713839967,1.11117124,3116.1,3115.1,3.21016]
[1720713840179,3.0074877,3116.3,3115.1,3.21016]
[1720713840180,1.76135894,3116.2,3115.1,3.21016]
[1720713840352,1.76135894,3116.1,3115.0,0.547579]
[1720713840548,0.6501877,3116.1,3115.0,0.547579]
[1720713840748,1.11153098,3116.0,3115.3,3.2099]
[1720713840967,0.6501877,3116.4,3115.4,0.32099]
[1720713841285,1.76364139,3116.3,3115.4,0.32099]
[1720713841583,1.11140172,3116.2,3115.4,3.53081]
[1720713841741,0.65223967,3116.0,3114.6,2.277]
[1720713841943,1.11140172,3115.9,3114.9,3.21036]
[1720713842241,1.76364139,3115.9,3114.5,3.21073]
[1720713842446,1.76364139,3115.9,3114.5,6.42145]
[1720713842447,0.65223967,3115.7,3114.5,6.42145]
[1720713842747,1.76364139,3115.6,3114.6,3.852745]
[1720713843053,1.11158192,3115.5,3114.9,3.21036]
[1720713843376,0.9783595,3115.9,3114.9,3.21029]
[1720713843377,0.65223967,3115.9,3114.9,3.21029]
[1720713843580,1.11154087,3115.8,3114.8,0.06419062]
[1720713843782,3.2429595,3116.1,3115.3,2.374]
[1720713843783,1.11154087,3115.7,3115.3,2.374]
[1720713843956,3.02443967,3116.5,3115.4,2.5144]
[1720713844292,3.02443967,3116.5,3114.8,3.21043]
[1720713844293,2.74190284,3116.4,3114.8,3.2104]
[1720713844444,0.65223967,3116.1,3114.8,3.2104]
[1720713844645,1.76354334,3116.0,3114.7,2.374]
[1720713844847,1.11130367,3115.9,3115.2,3.21001]
[1720713845070,0.65223967,3116.3,3115.4,3.20981]
[1720713845295,1.11135053,3116.2,3115.5,0.320981]
[1720713845590,1.11133891,3116.1,3115.5,3.530731]
[1720713845762,0.65223967,3116.2,3115.5,0.320981]
[1720713845946,1.11135736,3116.1,3115.5,0.320981]
[1720713846285,1.1113985,3116.0,3113.8,8.16096326]
[1720713846452,1.63059917,3116.1,3114.3,3.21095]
[1720713846453,0.65223967,3115.8,3114.3,3.21095]
[1720713846656,0.65223967,3115.5,3114.3,3.21091]
[1720713846842,1.76363817,3115.4,3114.2,2.4394]
[1720713847045,0.65223967,3115.6,3114.8,3.21043]
[1720713847271,0.9783595,3115.7,3114.8,3.21043]
[1720713847272,0.65223967,3115.7,3114.9,0.321043]
[1720713847582,0.65223967,3115.8,3115.0,3.21026]
[1720713847753,1.30447934,3116.1,3115.0,3.21026]
[1720713847754,1.11147374,3115.7,3115.0,3.21026]
[1720713847960,0.65223967,3116.0,3115.0,3.21026]
[1720713848157,1.76367881,3115.9,3115.0,3.21026]
[1720713848367,0.65223967,3115.7,3114.2,2.4394]
[1720713848671,0.65223967,3115.8,3115.3,3.20995]
[1720713848872,0.65223967,3116.2,3115.3,6.41982]
[1720713849385,1.76497523,3116.1,3115.4,3.20985]
[1720713849591,0.65364632,3116.2,3115.5,3.851682]
[1720713850255,1.7649735,3116.1,3115.5,3.851682]
[1720713850458,0.65364632,3116.1,3115.5,3.851682]
[1720713850663,0.65364632,3116.0,3115.5,0.641972]
[1720713851549,0.65364632,3116.0,3115.5,3.851722]
[1720713851755,0.65364632,3116.0,3115.6,0.3851722]
[1720713852184,0.65364632,3115.9,3115.6,0.3851722]
[1720713852757,0.65364632,3115.8,3115.2,2.277]
[1720713852959,0.65402104,3115.8,3115.2,3.21006]
[1720713853257,0.65402104,3115.8,3114.8,2.277]
[1720713853258,0.65402104,3115.6,3114.8,5.4874]
[1720713853497,0.65402104,3115.5,3115.0,0.55]
[1720713853703,0.65402104,3115.5,3114.9,3.76029]
[1720713854005,0.65402104,3115.5,3115.0,0.603729]
[1720713854299,0.98103156,3115.5,3114.8,5.48747]
[1720713854683,0.98103156,3115.5,3114.4,2.3422]
[1720713854684,0.98103156,3115.4,3114.5,5.4877]
[1720713854884,0.98103156,3115.3,3114.5,5.4877]
[1720713855076,1.30804209,3115.4,3114.5,8.6984]
[1720713855077,0.98103156,3115.2,3114.5,8.6984]
[1720713855257,0.98103156,3115.3,3114.5,8.6984]
[1720713855455,0.98103156,3115.3,3114.6,1.10406]
[1720713855655,0.98103156,3115.4,3113.8,2.3599]
[1720713855906,1.30804209,3115.6,3114.4,2.277]
[1720713855907,2.09266045,3115.3,3114.4,2.277]
[1720713856058,0.98103156,3115.0,3114.0,6.42252]
[1720713856258,0.98103156,3115.0,3114.2,2.277]
[1720713856655,0.98103156,3115.0,3114.2,5.48809]
[1720713856856,0.98103156,3115.0,3114.3,0.548809]
[1720713857093,0.98103156,3115.1,3114.3,0.548809]
[1720713857294,1.6357216,3115.4,3114.3,0.548809]
[1720713857295,0.98103156,3115.0,3114.3,0.548809]
[1720713857604,1.96286592,3115.7,3114.6,5.48762]
[1720713857605,0.98103156,3115.5,3114.6,5.48762]
[1720713857760,0.98103156,3115.5,3114.7,0.55]
[1720713857960,2.2718,3116.0,3114.7,0.55]
[1720713857961,0.98103156,3115.7,3115.0,5.48723]
[1720713858160,0.98103156,3115.7,3115.1,0.55]
[1720713858764,1.30804209,3115.9,3115.1,0.55]
[1720713858765,0.98103156,3115.8,3115.1,0.55]
[1720713859459,0.98103156,3115.7,3115.1,0.55]
[1720713860265,0.98116233,3115.8,3115.1,0.55]
[1720713860510,0.98116233,3115.8,3115.2,4.134788]
[1720713860799,1.96232466,3116.4,3115.7,3.20955]
[1720713860800,0.98116233,3116.4,3115.7,3.20955]
[1720713860971,1.30821644,3116.5,3115.8,0.55]
[1720713860972,0.98116233,3116.5,3115.8,0.55]
[1720713861178,0.98116233,3116.5,3115.9,0.375948]
[1720713861360,0.98116233,3116.4,3115.9,0.375948]
[1720713861961,0.98116233,3116.4,3115.3,5.58417]
[1720713862158,0.98116233,3116.4,3115.2,6.411748]
[1720713862159,0.98114174,3116.2,3115.2,3.201738]
[1720713862400,0.98114174,3116.0,3115.2,0.924738]
[1720713862569,0.98114174,3115.9,3115.2,4.134768]
[1720713862809,0.98114174,3116.1,3115.6,3.20963]
[1720713862958,0.98114174,3116.1,3115.7,0.548663]
[1720713863199,0.98114174,3116.2,3115.6,3.20956]
[1720713863486,0.98114174,3116.2,3115.5,2.277]
[1720713863487,0.98114174,3116.3,3115.5,5.4867]
[1720713863695,0.98114174,3116.2,3115.6,3.20958]
[1720713863878,0.98114174,3116.2,3115.5,2.277]
[1720713864094,0.98114174,3116.1,3115.5,2.277]
[1720713864405,0.65382477,3115.8,3115.2,4.134718]
[1720713864609,0.98114174,3116.0,3115.3,4.7221328]
[1720713864610,0.65382477,3115.9,3115.3,4.7221328]
[1720713864813,0.65382477,3115.9,3115.1,2.277]
[1720713865105,0.65382477,3115.8,3115.1,2.277]
[1720713865510,0.65382477,3115.8,3114.9,2.3743]
[1720713865719,0.65382477,3115.8,3113.8,4.71148]
[1720713865720,0.65382477,3115.6,3114.8,2.277]
[1720713865931,0.98114174,3115.7,3114.8,5.48739]
[1720713865932,0.65382477,3115.5,3114.8,5.48739]
[1720713866198,0.65382477,3115.4,3114.9,0.869791]
[1720713866401,0.65382477,3115.3,3114.9,0.869791]
[1720713866608,1.30818898,3115.6,3114.9,0.869791]
[1720713866609,0.65382477,3115.4,3114.9,0.869791]
[1720713866906,1.30818898,3115.7,3114.9,0.869791]
[1720713866907,0.65382477,3115.5,3114.9,0.869791]
[1720713867110,0.65382477,3115.6,3115.0,3.2102]
[1720713867272,0.65382477,3115.6,3115.1,3.9391651]
[1720713867471,0.98114174,3115.8,3115.1,3.9391651]
[1720713867472,0.65382477,3115.8,3115.1,3.9391651]
[1720713867668,0.65382477,3115.7,3115.1,3.9391651]
[1720713867890,0.65382477,3115.7,3115.1,0.7290351]
[1720713868104,0.65382477,3115.5,3114.8,2.277]
[1720713868309,0.65382477,3115.5,3114.9,0.55]
[1720713868519,0.98114174,3115.6,3114.9,0.55]
[1720713868520,0.65382477,3115.6,3114.9,0.55]
[1720713868680,0.65382477,3115.6,3114.8,2.277]
[1720713868872,0.65382477,3115.6,3114.4,7.78715]
[1720713868873,0.65382477,3115.4,3114.4,7.78715]
[1720713869075,0.65382477,3115.2,3114.5,4.310578]
[1720713869328,0.65382477,3115.2,3114.5,1.099808]
[1720713869477,0.65382477,3115.3,3114.4,2.277]
[1720713869877,1.63496651,3115.1,3114.0,2.277]
[1720713870113,0.65382477,3115.1,3114.2,3.21101]
[1720713870416,0.65382477,3115.0,3114.3,3.21099]
[1720713870776,0.65382477,3115.0,3114.1,3.21119]
[1720713870777,0.65382477,3115.0,3114.1,3.21113]
[1720713871132,0.65382477,3114.9,3114.2,0.548813]
[1720713871313,0.65382477,3114.9,3114.3,0.55]
[1720713872023,0.65333355,3115.0,3114.3,3.76098]
[1720713872527,0.65333355,3115.1,3114.3,3.76098]
[1720713872690,0.65333355,3115.0,3114.3,3.76098]
[1720713872895,0.65333355,3115.0,3114.3,4.5130723]
[1720713873413,0.65333355,3115.0,3114.4,2.277]
[1720713873621,0.65333355,3115.1,3114.4,2.277]
[1720713873912,0.65333355,3115.0,3114.4,2.277]
[1720713874131,0.65333355,3115.0,3114.4,3.01088853]
[1720713874439,0.65333355,3115.0,3114.4,2.277]
[1720713874822,0.65333355,3114.9,3114.4,2.277]
[1720713875191,0.65333355,3114.9,3114.0,2.277]
[1720713875503,0.65333355,3114.6,3114.0,2.277]
[1720713875700,0.98000033,3114.8,3113.7,3.21158]
[1720713875701,0.65333355,3114.4,3113.7,3.21158]
[1720713875905,0.65333355,3114.4,3113.7,0.642334]
[1720713876231,0.65333355,3114.2,3113.5,3.21175]
[1720713876530,0.65333355,3114.3,3113.5,3.21175]
[1720713876730,0.65333355,3114.3,3113.4,2.277]
[1720713876932,3.09543355,3114.2,3113.4,2.277]
[1720713877095,3.09543355,3114.2,3113.4,5.48885]
[1720713877292,3.09543355,3114.2,3113.4,6.037735]
[1720713877293,2.4421,3114.2,3113.4,6.037735]
[1720713877829,2.4421,3114.2,3113.4,2.825885]
[1720713878131,0.65333355,3114.3,3113.4,5.48889]
[1720713878346,0.65333355,3114.3,3112.4,3.2129]
[1720713878347,0.65333355,3114.5,3113.8,2.277]
[1720713878522,0.98000033,3114.6,3113.8,2.277]
[1720713878523,0.65333355,3114.6,3113.8,2.277]
[1720713878731,0.65333355,3114.6,3113.3,5.6947]
[1720713879028,0.65333355,3114.6,3113.4,0.0642234]
[1720713879333,0.65333355,3114.7,3113.7,5.48859]
[1720713879627,0.65333355,3114.7,3113.8,0.55]
[1720713880395,0.65333355,3114.6,3113.8,0.55]
[1720713880829,0.65333355,3114.5,3113.3,4.7597]
[1720713881042,0.98000033,3114.7,3113.4,0.55]
[1720713881043,3.05863355,3114.4,3113.4,0.55]
[1720713881245,2.4053,3114.4,3113.5,0.2827]
[1720713881397,2.4053,3114.4,3113.4,0.55]
[1720713881398,3.05770525,3114.4,3113.4,0.55]
[1720713881616,2.4053,3114.4,3113.4,0.55]
[1720713881804,0.65221022,3114.3,3113.4,0.55]
[1720713882415,3.05751022,3114.4,3113.4,0.55]
[1720713882647,0.40358256,3114.3,3113.4,0.55]
[1720713882888,0.40358256,3114.3,3113.3,0.55]
[1720713883205,1.05579278,3114.3,3113.3,0.55]
[1720713883408,0.40358256,3114.3,3113.3,0.55]
[1720713883633,0.65221022,3114.2,3113.3,0.55]
[1720713883811,2.4417,3114.0,3112.5,2.277]
[1720713884030,0.65221022,3113.8,3112.5,5.48982]
[1720713884398,2.4417,3114.0,3112.4,2.3261]
[1720713884399,0.65221022,3114.0,3113.0,3.21228]
[1720713884632,2.91891022,3114.4,3113.3,5.48896]
[1720713884818,2.2667,3114.4,3113.4,0.548896]
[1720713885024,2.91891022,3114.4,3113.2,3.21211]
[1720713885225,2.91891022,3114.4,3113.0,3.21228]
[1720713885226,2.2667,3114.4,3113.0,3.21227]
[1720713885447,0.65221022,3114.3,3112.6,2.421]
[1720713885744,0.65221022,3114.3,3112.8,3.21246]
[1720713885745,0.65221022,3114.1,3112.8,3.21246]
[1720713885910,3.01261022,3114.0,3112.6,2.277]
[1720713886104,0.65221022,3113.8,3112.6,2.277]
[1720713886307,0.95347124,3113.9,3112.6,2.277]
[1720713886701,0.30126102,3113.9,3112.6,2.277]
[1720713886901,0.95347124,3113.9,3112.6,2.277]
[1720713887150,0.95347124,3113.9,3112.0,0.00152106]
[1720713887151,2.3355,3113.7,3112.2,3.21307]
[1720713887302,3.377,3113.7,3112.3,0.321307]
[1720713887506,0.65221022,3113.6,3112.1,2.277]
[1720713887725,0.65221022,3113.5,3112.1,2.277]
[1720713887962,0.65221022,3113.4,3112.1,2.277]
[1720713888138,3.42921022,3113.5,3112.0,0.00152106]
[1720713888503,0.65221022,3113.4,3112.0,0.00152106]
[1720713888702,0.99513124,3113.3,3112.0,0.00152106]
[1720713889340,0.34292102,3113.3,3112.0,0.00152106]
[1720713889642,3.377,3113.7,3112.0,0.00152106]
[1720713889643,3.377,3113.4,3112.0,0.00152106]
[1720713890255,2.3104,3113.1,3112.0,0.00152106]
[1720713890417,5.6874,3113.1,3112.0,0.00152106]
[1720713890756,3.377,3112.9,3112.0,0.00152106]
[1720713891442,2.3104,3113.0,3112.0,0.00152106]
[1720713891642,0.32148494,3112.9,3112.0,0.00152106]
[1720713892904,0.32148494,3112.9,3110.9,3.21446]
[1720713893124,0.32148494,3112.9,3111.4,5.49095]
[1720713893436,0.32148494,3112.9,3111.5,0.55]
[1720713894336,0.32148494,3112.9,3111.3,3.21407]
[1720713894337,2.4463,3112.8,3111.3,3.21407]
[1720713894530,2.4463,3112.8,3111.6,3.21372]
[1720713894718,2.4463,3112.8,3111.7,3.21364]
[1720713894919,2.4463,3112.8,3111.8,3.21357]
[1720713895123,2.4463,3112.8,3111.8,5.49057]
[1720713895364,2.69093,3112.8,3111.8,3.377171]
[1720713895532,2.69093,3112.8,3111.8,2.277]
[1720713895731,2.69093,3112.8,3111.6,3.21377]
[1720713896058,2.69093,3112.8,3111.7,3.76359]
[1720713896357,2.69093,3112.8,3111.9,3.21341]
[1720713896544,0.269093,3112.7,3112.0,0.55]
[1720713896746,0.269093,3112.7,3111.8,2.277]
[1720713896919,0.269093,3112.7,3111.6,3.21377]
[1720713897124,0.269093,3112.7,3111.7,0.55]
[1720713897631,0.269093,3112.7,3111.6,0.55]
[1720713897832,0.2715393,3112.6,3111.6,0.55]
[1720713898048,0.2715393,3112.6,3111.4,2.277]
[1720713898675,0.2715393,3112.6,3111.5,3.21385]
[1720713898845,0.2715393,3112.6,3111.5,3.21378]
[1720713899160,0.2715393,3112.6,3111.4,2.277]
[1720713899161,2.4781,3112.5,3111.4,2.277]
[1720713899438,3.09076393,3112.5,3111.8,3.21357]
[1720713899744,2.4781,3112.5,3111.8,3.21357]
[1720713900166,2.4781,3112.5,3111.6,3.21377]
[1720713900336,2.3162,3113.2,3112.1,3.21326]
[1720713901136,2.3162,3113.2,3112.4,3.21287]
[1720713901340,2.3162,3113.8,3112.6,3.21268]
[1720713901639,0.2617461,3113.7,3112.3,0.55]
[1720713901845,0.2617461,3113.7,3112.8,3.21253]
[1720713902137,0.2617461,3113.7,3112.6,6.42532]
[1720713902339,0.2617461,3113.7,3112.6,3.21266]
[1720713902545,0.2617461,3113.7,3112.7,3.21263]
[1720713902841,2.3162,3113.8,3112.8,3.2125]
[1720713903084,2.3162,3113.8,3111.5,0.2277]
[1720713903261,2.3162,3113.8,3111.5,3.21382]
[1720713903262,2.4944,3113.5,3111.5,3.21382]
[1720713903562,2.4944,3113.5,3111.2,2.3649]
[1720713903563,3.377,3112.9,3111.2,3.21415]
[1720713903884,3.377,3112.9,3111.2,3.2141]
[1720713903885,3.377,3112.7,3111.2,3.2141]
[1720713904086,3.95363,3112.6,3111.2,3.2141]
[1720713904324,3.377,3112.4,3111.1,5.49127]
[1720713904465,3.377,3112.4,3111.1,3.21427]
[1720713904659,3.377,3112.4,3111.2,3.21415]
[1720713904971,2.3893,3112.5,3110.7,3.052]
[1720713904972,2.3893,3112.5,3111.5,3.21386]
[1720713905190,2.3893,3112.5,3111.8,3.21357]
[1720713905347,2.3893,3112.5,3111.6,3.21368]
[1720713905887,2.3893,3112.5,3111.3,3.21402]
[1720713906098,2.3893,3112.5,3111.2,3.21419]
[1720713906261,2.3893,3112.5,3111.1,3.21424]
[1720713906262,2.3893,3112.5,3111.3,3.21408]
[1720713906577,0.23893,3112.4,3111.4,3.21396]
[1720713907371,0.23893,3112.4,3111.5,3.21379]
[1720713907575,0.23893,3112.4,3111.6,3.21376]
[1720713908369,2.3893,3112.5,3112.0,3.21335]
[1720713908981,2.3893,3112.5,3111.5,6.81578]
[1720713909183,2.3893,3112.5,3111.5,3.76378]
[1720713909758,2.3893,3112.5,3111.1,3.052]
[1720713909959,2.3893,3112.5,3111.6,3.21378]
[1720713910156,0.23893,3112.4,3111.6,3.21378]
[1720713910390,0.23893,3112.4,3111.4,3.21389]
[1720713910692,0.23893,3112.4,3111.3,3.21404]
[1720713911004,0.23893,3112.4,3111.4,0.55]
[1720713911491,0.23893,3112.4,3110.6,3.21479]
[1720713911492,3.377,3112.2,3110.2,3.21517]
[1720713911699,3.377,3112.0,3110.4,3.21496]
[1720713911896,6.83463659,3111.9,3110.6,3.21473]
[1720713912117,6.83463659,3111.9,3110.1,6.26729]
[1720713912118,2.3446,3111.9,3110.1,6.26729]
[1720713912395,2.3446,3111.9,3110.5,3.052]
[1720713912396,3.377,3111.8,3110.5,3.052]
[1720713912596,3.377,3111.8,3110.0,2.4812]
[1720713912597,3.377,3111.8,3110.4,3.21498]
[1720713912899,0.57216,3111.7,3110.6,3.21479]
[1720713913132,3.377,3111.8,3110.5,3.21485]
[1720713913260,2.4197,3111.4,3110.2,3.21515]
[1720713913879,2.4197,3111.4,3110.2,6.43032]
[1720713914074,2.4197,3111.4,3110.1,3.052]
[1720713914290,3.377,3111.9,3109.6,0.005]
[1720713914291,3.377,3111.1,3109.6,0.005]
[1720713914474,3.377,3110.9,3109.6,0.005]
[1720713914797,3.37082323,3110.9,3109.6,3.22083]
[1720713914963,3.37082323,3110.9,3109.7,3.2157]
[1720713915164,4.47804532,3110.8,3109.7,3.2157]